fUST/lending_fUST_20250614
["ID","MTS","AMOUNT","RATE_DAILY","PERIOD"]
[365741038,1749863442882,-158.8399287,0.00022986,2]
[365741039,1749863442892,-353.9079098,0.00022986,2]
[365741040,1749863442901,-573.6747916,0.00022986,2]
[365741041,1749863442910,-3000.0,0.0002299,2]
[365741042,1749863442919,-3641.109936,0.00023,2]
[365741043,1749863442929,-3182.0,0.00023,15]
[365741044,1749863442938,-10000.0,0.00023,30]
[365741046,1749863442949,-315.3059208,0.00023,30]
[365741047,1749863442958,-500.0,0.00023009,2]
[365741049,1749863442967,-500.0,0.00023009,2]
[365741050,1749863442977,-500.0,0.00023009,2]
[365741051,1749863442988,-500.0,0.00023013,2]
[365741052,1749863442998,-173.0,0.00023014,7]
[365741053,1749863443007,-1846.64196988,0.00023038,8]
[365741054,1749863443016,-2544.74511337,0.00023068,2]
[365741055,1749863443025,-151.0,0.000231,5]
[365741057,1749863443035,-94880.96,0.000231,7]
[365741059,1749863443044,-151.0,0.000231,7]
[365741061,1749863443053,-151.0,0.000231,7]
[365741062,1749863443063,-151.0,0.000231,7]
[365741063,1749863443073,-151.0,0.000231,7]
[365741064,1749863443086,-151.0,0.000231,7]
[365741065,1749863443095,-153.067976,0.000231,7]
[365741066,1749863443104,-153.067976,0.000231,7]
[365741067,1749863443115,-364.173987,0.000231,7]
[365741068,1749863443124,-364.173987,0.000231,7]
[365741069,1749863443135,-151.0,0.000231,7]
[365741070,1749863443144,-151.0,0.000231,7]
[365741071,1749863443153,-151.0,0.000231,7]
[365741072,1749863443163,-151.0,0.000231,7]
[365741073,1749863443174,-151.0,0.000231,7]
[365741074,1749863443183,-1846.64196988,0.00023141,8]
[365741076,1749863443193,-2838.34,0.00023164,3]
[365741078,1749863443202,-1482.28,0.00023164,3]
[365741079,1749863443211,-811.22,0.00023164,3]
[365741080,1749863443221,-405.62,0.00023164,3]
[365741081,1749863443231,-413.08,0.00023164,3]
[365741082,1749863443240,-450.3,0.00023164,3]
[365741083,1749863443250,-1500.0,0.00023168,2]
[365741084,1749863443259,-460.0,0.0002317,4]
[365741085,1749863443268,-4017.34,0.0002317,4]
[365741086,1749863443278,-878.03,0.0002317,4]
[365741087,1749863443288,-671.49,0.0002317,4]
[365741088,1749863443298,-1138.48,0.0002317,4]
[365741089,1749863443310,-419.45,0.0002317,4]
[365741090,1749863443320,-696.59,0.0002317,4]
[365741091,1749863443330,-1001.58,0.0002317,4]
[365741092,1749863443340,-460.0,0.0002317,4]
[365741093,1749863443350,-460.0,0.0002317,4]
[365741094,1749863443360,-460.0,0.0002317,4]
[365741096,1749863443370,-153.0,0.00023171,2]
[365741098,1749863443382,-153.0,0.00023171,2]
[365741100,1749863443392,-153.0,0.00023171,2]
[365741101,1749863443402,-153.0,0.00023171,2]
[365741102,1749863443412,-153.0,0.00023171,2]
[365741103,1749863443421,-460.0,0.00023171,4]
[365741104,1749863443430,-151.0,0.00023171,7]
[365741105,1749863443440,-460.0,0.00023171,4]
[365741106,1749863443449,-460.0,0.00023171,4]
[365741107,1749863443458,-460.0,0.00023171,4]
[365741108,1749863443468,-460.0,0.00023171,4]
[365741109,1749863443477,-151.0,0.00023171,7]
[365741110,1749863443486,-151.0,0.00023171,7]
[365741111,1749863443496,-260.664873,0.00023171,7]
[365741112,1749863443505,-260.664873,0.00023171,7]
[365741113,1749863443515,-1060.17,0.00023171,4]
[365741114,1749863443524,-460.0,0.00023171,4]
[365741115,1749863443534,-460.0,0.00023171,4]
[365741116,1749863443544,-460.0,0.00023171,4]
[365741117,1749863443553,-460.0,0.00023171,4]
[365741118,1749863443562,-554.69,0.00023171,4]
[365741119,1749863443572,-460.0,0.00023171,4]
[365741120,1749863443582,-460.0,0.00023171,4]
[365741121,1749863443591,-460.0,0.00023171,4]
[365741122,1749863443602,-499.39,0.00023171,4]
[365741123,1749863443612,-460.0,0.00023171,4]
[365741124,1749863443621,-460.0,0.00023171,4]
[365741125,1749863443631,-625.55,0.00023171,4]
[365741126,1749863443640,-460.0,0.00023171,4]
[365741127,1749863443650,-5367.8715,0.00023171,2]
[365741128,1749863443660,-1545.63,0.00023171,4]
[365741129,1749863443669,-5367.8715,0.00023171,2]
[365741130,1749863443680,-600.0,0.00023172,4]
[365741131,1749863443689,-460.0,0.00023172,4]
[365741132,1749863443699,-290.0,0.00023172,4]
[365741133,1749863443708,-460.0,0.00023172,4]
[365741134,1749863443718,-460.0,0.00023172,4]
[365741135,1749863443728,-543.05,0.00023172,4]
[365741136,1749863443738,-485.48,0.00023172,4]
[365741137,1749863443747,-290.0,0.00023172,4]
[365741138,1749863443757,-460.0,0.00023172,4]
[365741139,1749863443767,-310.0,0.00023172,4]
[365741140,1749863443776,-460.0,0.00023172,2]
[365741141,1749863443786,-182.54,0.00023172,4]
[365741142,1749863443796,-460.0,0.00023172,4]
[365741143,1749863443806,-160.0,0.00023173,2]
[365741144,1749863443815,-1846.64196988,0.00023245,8]
[365741145,1749863443825,-153.0,0.0002326,2]
[365741146,1749863443835,-153.0,0.0002326,2]
[365741147,1749863443844,-153.0,0.0002326,2]
[365741148,1749863443853,-306.7585254,0.0002326,2]
[365741149,1749863443863,-2160.0,0.00023267,2]
[365741150,1749863443873,-3000.0,0.000233,2]
[365741151,1749863443883,-151.0,0.000233,9]
[365741152,1749863443893,-3000.0,0.0002331,2]
[365741153,1749863443902,-5000.0,0.00023316,2]
[365741154,1749863443911,-3000.0,0.0002332,2]
[365741155,1749863443921,-1794.6521,0.00023324,3]
[365741156,1749863443930,-3000.0,0.0002333,2]
[365741157,1749863443940,-3000.0,0.0002334,2]
[365741158,1749863443950,-1846.64196988,0.00023348,9]
[365741159,1749863443959,-3000.0,0.0002335,2]
[365741160,1749863443969,-3000.0,0.0002336,2]
[365741161,1749863443979,-405.0,0.00023361,2]
[365741162,1749863443988,-3000.0,0.0002337,2]
[365741163,1749863443997,-3000.0,0.0002338,2]
[365741164,1749863444007,-3000.0,0.0002339,2]
[365741165,1749863444016,-3000.0,0.000234,2]
[365741166,1749863444026,-151.0,0.000234,7]
[365741167,1749863444035,-160.0,0.000234,4]
[365741168,1749863444044,-160.0,0.000234,5]
[365741169,1749863444054,-3000.0,0.0002341,2]
[365741170,1749863444063,-3000.0,0.0002342,2]
[365741171,1749863444072,-21455.60762286,0.00023428,2]
[365741172,1749863444081,-3000.0,0.0002343,2]
[365741173,1749863444090,-3000.0,0.0002344,2]
[365741174,1749863444100,-460.0,0.00023444,4]
[365741175,1749863444109,-4017.34,0.00023444,4]
[365741176,1749863444118,-878.03,0.00023444,4]
[365741177,1749863444129,-671.49,0.00023444,4]
[365741178,1749863444139,-1138.48,0.00023444,4]
[365741179,1749863444148,-696.59,0.00023444,4]
[365741180,1749863444158,-1001.58,0.00023444,4]
[365741181,1749863444167,-460.0,0.00023444,4]
[365741182,1749863444176,-460.0,0.00023444,4]
[365741183,1749863444185,-460.0,0.00023444,4]
[365741184,1749863444195,-460.0,0.00023445,4]
[365741185,1749863444206,-460.0,0.00023445,4]
[365741186,1749863444215,-460.0,0.00023445,4]
[365741187,1749863444225,-460.0,0.00023445,4]
[365741188,1749863444236,-460.0,0.00023445,4]
[365741189,1749863444246,-1060.17,0.00023445,4]
[365741190,1749863444256,-460.0,0.00023445,4]
[365741191,1749863444266,-460.0,0.00023445,4]
[365741192,1749863444276,-460.0,0.00023445,4]
[365741193,1749863444287,-260.28745951,0.00023445,4]
[365741194,1749863444297,-554.69,0.00023445,4]
[365741195,1749863444311,-460.0,0.00023445,4]
[365741196,1749863444320,-460.0,0.00023445,4]
[365741197,1749863444330,-460.0,0.00023445,4]
[365741198,1749863444339,-499.39,0.00023445,4]
[365741199,1749863444350,-460.0,0.00023445,4]
[365741200,1749863444360,-460.0,0.00023445,4]
[365741201,1749863444370,-625.55,0.00023445,4]
[365741202,1749863444380,-460.0,0.00023445,4]
[365741203,1749863444390,-1545.63,0.00023445,4]
[365741204,1749863444399,-460.0,0.00023446,4]
[365741205,1749863444410,-151.0,0.00023446,7]
[365741206,1749863444419,-151.0,0.00023446,7]
[365741207,1749863444506,-151.0,0.00023446,7]
[365741208,1749863444515,-151.0,0.00023446,7]
[365741209,1749863444525,-172.019868,0.00023446,7]
[365741210,1749863444534,-172.019868,0.00023446,7]
[365741211,1749863444543,-460.0,0.00023446,4]
[365741212,1749863444553,-460.0,0.00023446,4]
[365741213,1749863444562,-543.05,0.00023446,4]
[365741214,1749863444574,-485.48,0.00023446,4]
[365741215,1749863444584,-460.0,0.00023446,4]
[365741216,1749863444595,-774.252274,0.00023446,7]
[365741217,1749863444605,-774.252274,0.00023446,7]
[365741218,1749863444615,-460.0,0.00023446,2]
[365741219,1749863444626,-460.0,0.00023446,4]
[365741220,1749863444637,-500.0,0.00023447,5]
[365741221,1749863444646,-3000.0,0.0002345,2]
[365741222,1749863444656,-151.598266,0.0002345,7]
[365741223,1749863444666,-1846.64196988,0.00023452,9]
[365741224,1749863444676,-162.48241,0.00023452,7]
[365741225,1749863444686,-151.0,0.00023452,7]
[365741226,1749863444695,-151.0,0.00023452,7]
[365741227,1749863444704,-151.0,0.00023452,7]
[365741228,1749863444715,-3000.0,0.0002346,2]
[365741229,1749863444724,-3000.0,0.0002347,2]
[365741230,1749863444734,-151.0,0.0002347,7]
[365741231,1749863444745,-151.0,0.0002347,7]
[365741232,1749863444755,-151.0,0.0002347,7]
[365741233,1749863444764,-151.0,0.0002347,7]
[365741234,1749863444773,-151.0,0.0002347,7]
[365741235,1749863444782,-151.0,0.0002347,7]
[365741236,1749863444791,-3000.0,0.0002348,2]
[365741237,1749863444802,-5367.8715,0.0002348,2]
[365741238,1749863444811,-5367.8715,0.0002348,2]
[365741239,1749863444820,-3000.0,0.0002349,2]
[365741240,1749863444831,-2544.74511337,0.00023499,2]
[365741241,1749863444840,-184.305441,0.00023499,7]
[365741242,1749863444850,-151.0,0.00023499,7]
[365741243,1749863444859,-151.0,0.00023499,7]
[365741244,1749863444868,-260.664873,0.00023499,7]
[365741245,1749863444877,-260.664873,0.00023499,7]
[365741246,1749863444888,-3000.0,0.000235,2]
[365741247,1749863444897,-160.0,0.000235,3]
[365741248,1749863444907,-424.32678023,0.000235,3]
[365741249,1749863444916,-229.78555783,0.000235,3]
[365741250,1749863444925,-160.0,0.000235,3]
[365741251,1749863444934,-213.24139183,0.000235,3]
[365741252,1749863444944,-160.0,0.000235,3]
[365741253,1749863444953,-160.0,0.000235,3]
[365741254,1749863444962,-12531.02669373,0.000235,3]
[365741255,1749863444972,-160.0,0.000235,3]
[365741256,1749863444981,-844.94977992,0.000235,3]
[365741257,1749863444991,-767.24724443,0.00023503,2]
[365741258,1749863445000,-3000.0,0.0002351,2]
[365741259,1749863445009,-3000.0,0.0002352,2]
[365741260,1749863445019,-1000.0,0.00023521,2]
[365741261,1749863445028,-3000.0,0.0002353,2]
[365741262,1749863445038,-153.057035,0.0002353,7]
[365741263,1749863445047,-151.0,0.0002353,7]
[365741264,1749863445056,-151.0,0.0002353,7]
[365741265,1749863445064,-199.863332,0.0002353,7]
[365741266,1749863445074,-151.0,0.0002353,7]
[365741267,1749863445083,-153.067976,0.0002353,7]
[365741268,1749863445092,-153.067976,0.0002353,7]
[365741269,1749863445102,-364.173987,0.0002353,7]
[365741270,1749863445111,-364.173987,0.0002353,7]
[365741271,1749863445120,-3000.0,0.0002354,2]
[365741272,1749863445130,-151.0,0.0002354,7]
[365741273,1749863445139,-3000.0,0.0002355,2]
[365741274,1749863445148,-1846.64196988,0.00023555,9]
[365741275,1749863445157,-1000.0,0.00023557,2]
[365741276,1749863445167,-505.00855098,0.00023557,2]
[365741277,1749863445176,-3000.0,0.0002356,2]
[365741278,1749863445185,-500.0,0.00023561,2]
[365741279,1749863445194,-200.0,0.00023561,4]
[365741280,1749863445204,-150.61138,0.00023561,4]
[365741281,1749863445214,-3000.0,0.0002357,2]
[365741282,1749863445224,-3000.0,0.0002358,2]
[365741283,1749863445233,-150.0,0.00023586,2]
[365741284,1749863445242,-215.0738,0.00023589,2]
[365741285,1749863445251,-3000.0,0.0002359,2]
[365741286,1749863445262,-200.0,0.00023599,2]
[365741287,1749863445272,-3000.0,0.000236,2]
[365741288,1749863445281,-151.0,0.000236,7]
[365741289,1749863445291,-639.0,0.000236,2]
[365741290,1749863445302,-3000.0,0.0002361,2]
[365741291,1749863445313,-200.0,0.00023613,2]
[365741292,1749863445322,-164.24010783,0.00023619,4]
[365741293,1749863445333,-164.24010783,0.00023619,4]
[365741294,1749863445343,-164.24010783,0.00023619,4]
[365741295,1749863445352,-164.24010783,0.00023619,4]
[365741296,1749863445362,-164.24,0.00023619,4]
[365741297,1749863445372,-159.67788261,0.00023619,4]
[365741298,1749863445384,-159.67788261,0.00023619,4]
[365741299,1749863445394,-159.67788261,0.00023619,4]
[365741300,1749863445404,-159.67788261,0.00023619,4]
[365741301,1749863445413,-159.67788261,0.00023619,4]
[365741302,1749863445423,-159.67788261,0.00023619,4]
[365741303,1749863445432,-159.67788261,0.00023619,4]
[365741304,1749863445442,-159.67788261,0.00023619,4]
[365741305,1749863445451,-159.67788261,0.00023619,4]
[365741306,1749863445461,-159.67788261,0.00023619,4]
[365741307,1749863445470,-159.67788261,0.00023619,4]
[365741308,1749863445480,-3000.0,0.0002362,2]
[365741309,1749863445489,-167.53606227,0.0002362,2]
[365741310,1749863445498,-3000.0,0.0002363,2]
[365741311,1749863445507,-151.0,0.0002363,7]
[365741312,1749863445517,-151.0,0.0002363,7]
[365741313,1749863445526,-151.0,0.0002363,7]
[365741314,1749863445536,-152.650201,0.0002363,7]
[365741315,1749863445545,-151.0,0.0002363,7]
[365741316,1749863445555,-151.0,0.0002363,7]
[365741317,1749863445564,-151.0,0.0002363,7]
[365741318,1749863445573,-151.0,0.0002363,7]
[365741319,1749863445583,-200.0,0.00023637,2]
[365741320,1749863445592,-3000.0,0.0002364,2]
[365741321,1749863445601,-3000.0,0.0002365,2]
[365741322,1749863445611,-420.0,0.00023655,2]
[365741323,1749863445621,-1846.64196988,0.00023659,9]
[365741324,1749863445630,-3000.0,0.0002366,2]
[365741325,1749863445639,-151.498,0.00023664,2]
[365741326,1749863445648,-250.0,0.00023664,2]
[365741327,1749863445657,-244.659,0.00023664,2]
[365741328,1749863445667,-258.376,0.00023664,2]
[365741329,1749863445676,-215.661,0.00023664,2]
[365741330,1749863445685,-964.0,0.00023664,2]
[365741331,1749863445694,-653.0,0.00023664,2]
[365741332,1749863445703,-3000.0,0.0002367,2]
[365741333,1749863445713,-180.75299971,0.00023671,2]
[365741334,1749863445722,-3000.0,0.0002368,2]
[365741335,1749863445732,-420.0,0.00023687,2]
[365741336,1749863445741,-3000.0,0.0002369,2]
[365741337,1749863445751,-3000.0,0.000237,2]
[365741338,1749863445760,-1764.73831009,0.000237,2]
[365741340,1749863445770,-159.67,0.000237,4]
[365741341,1749863445779,-3000.0,0.0002371,2]
[365741343,1749863445788,-151.0,0.00023716,7]
[365741344,1749863445798,-151.0,0.00023716,7]
[365741346,1749863445807,-151.0,0.00023716,7]
[365741347,1749863445817,-172.019868,0.00023716,7]
[365741349,1749863445826,-172.019868,0.00023716,7]
[365741350,1749863445836,-774.252274,0.00023716,7]
[365741351,1749863445845,-774.252274,0.00023716,7]
[365741353,1749863445855,-460.0,0.00023718,4]
[365741354,1749863445864,-4017.34,0.00023718,4]
[365741355,1749863445873,-878.03,0.00023718,4]
[365741356,1749863445883,-671.49,0.00023718,4]
[365741357,1749863445893,-1138.48,0.00023718,4]
[365741358,1749863445902,-696.59,0.00023718,4]
[365741359,1749863445912,-1001.58,0.00023718,4]
[365741360,1749863445921,-204.97,0.00023718,4]
[365741362,1749863445931,-460.0,0.00023718,4]
[365741364,1749863445940,-460.0,0.00023718,4]
[365741366,1749863445949,-460.0,0.00023719,4]
[365741368,1749863445959,-460.0,0.00023719,4]
[365741370,1749863445968,-460.0,0.00023719,4]
[365741372,1749863445977,-460.0,0.00023719,4]
[365741374,1749863445986,-460.0,0.00023719,4]
[365741376,1749863445995,-1060.17,0.00023719,4]
[365741378,1749863446005,-460.0,0.00023719,4]
[365741380,1749863446014,-460.0,0.00023719,4]
[365741382,1749863446023,-460.0,0.00023719,4]
[365741384,1749863446033,-554.69,0.00023719,4]
[365741386,1749863446042,-460.0,0.00023719,4]
[365741388,1749863446052,-460.0,0.00023719,4]
[365741390,1749863446061,-460.0,0.00023719,4]
[365741392,1749863446070,-499.39,0.00023719,4]
[365741402,1749863446151,-460.0,0.00023719,4]
[365741405,1749863446160,-460.0,0.00023719,4]
[365741407,1749863446170,-625.55,0.00023719,4]
[365741409,1749863446179,-460.0,0.00023719,4]
[365741410,1749863446188,-1545.63,0.00023719,4]
[365741411,1749863446198,-3000.0,0.0002372,2]
[365741412,1749863446207,-460.0,0.0002372,4]
[365741413,1749863446216,-460.0,0.0002372,4]
[365741414,1749863446226,-460.0,0.0002372,4]
[365741415,1749863446236,-543.05,0.0002372,4]
[365741417,1749863446245,-485.48,0.0002372,4]
[365741419,1749863446254,-460.0,0.0002372,4]
[365741421,1749863446263,-460.0,0.0002372,2]
[365741423,1749863446273,-460.0,0.0002372,4]
[365741425,1749863446282,-3000.0,0.0002373,2]
[365741427,1749863446292,-151.0,0.0002373,7]
[365741429,1749863446304,-4166.00833,0.0002374,2]
[365741431,1749863446313,-151.0,0.0002374,7]
[365741433,1749863446323,-151.0,0.0002374,7]
[365741434,1749863446332,-151.0,0.0002374,7]
[365741437,1749863446341,-151.0,0.0002374,7]
[365741439,1749863446352,-2785.0,0.00023756,2]
[365741441,1749863446363,-1846.64196988,0.00023762,9]
[365741443,1749863446374,-500.0,0.00023773,2]
[365741444,1749863446386,-500.0,0.00023773,2]
[365741447,1749863446396,-500.0,0.00023773,2]
[365741449,1749863446406,-500.0,0.00023773,2]
[365741451,1749863446415,-501.98508171,0.00023773,2]
[365741453,1749863446425,-500.0,0.00023773,2]
[365741455,1749863446435,-500.0,0.00023773,2]
[365741457,1749863446444,-500.0,0.00023773,2]
[365741459,1749863446454,-500.48958838,0.00023773,2]
[365741461,1749863446465,-500.0,0.00023773,2]
[365741463,1749863446475,-504.28907664,0.00023773,2]
[365741465,1749863446485,-500.0,0.00023773,2]
[365741467,1749863446494,-500.0,0.00023773,2]
[365741469,1749863446503,-500.0,0.00023773,2]
[365741471,1749863446512,-500.0,0.00023773,2]
[365741473,1749863446522,-600.0,0.00023773,2]
[365741475,1749863446532,-500.0,0.00023773,2]
[365741477,1749863446542,-500.0,0.00023773,2]
[365741479,1749863446552,-500.0,0.00023773,2]
[365741481,1749863446561,-512.72178487,0.00023773,2]
[365741483,1749863446571,-500.0,0.00023773,2]
[365741485,1749863446580,-503.13665459,0.00023773,2]
[365741487,1749863446590,-500.0,0.00023773,2]
[365741489,1749863446600,-315.692909,0.00023773,7]
[365741491,1749863446609,-315.692909,0.00023773,7]
[365741493,1749863446618,-151.0,0.00023773,7]
[365741495,1749863446627,-151.0,0.00023773,7]
[365741497,1749863446637,-151.0,0.00023773,7]
[365741499,1749863446647,-151.0,0.00023773,7]
[365741501,1749863446656,-151.0,0.00023773,7]
[365741503,1749863446665,-5367.8715,0.00023773,2]
[365741505,1749863446674,-5367.8715,0.00023773,2]
[365741507,1749863446683,-1745.0,0.00023787,3]
[365741509,1749863446691,-151.0,0.00023787,3]
[365741511,1749863446700,-1745.0,0.00023787,3]
[365741513,1749863446710,-151.0,0.00023787,3]
[365741515,1749863446719,-1745.0,0.00023787,3]
[365741517,1749863446728,-151.0,0.00023787,3]
[365741519,1749863446737,-1745.0,0.00023787,3]
[365741520,1749863446746,-171.0,0.00023787,3]
[365741521,1749863446755,-151.0,0.00023787,3]
[365741522,1749863446764,-171.0,0.00023787,3]
[365741523,1749863446773,-1745.0,0.00023787,3]
[365741524,1749863446781,-151.0,0.00023787,3]
[365741525,1749863446790,-1745.0,0.00023787,3]
[365741526,1749863446800,-151.0,0.00023787,3]
[365741527,1749863446809,-1745.0,0.00023787,3]
[365741528,1749863446818,-151.0,0.00023787,3]
[365741529,1749863446827,-151.0,0.00023787,3]
[365741530,1749863446836,-1745.0,0.00023787,3]
[365741531,1749863446845,-151.0,0.00023787,3]
[365741532,1749863446854,-1745.0,0.00023787,3]
[365741533,1749863446863,-1745.0,0.00023787,3]
[365741534,1749863446872,-151.0,0.00023787,3]
[365741535,1749863446881,-317.0,0.00023787,3]
[365741536,1749863446891,-317.0,0.00023787,3]
[365741537,1749863446900,-317.0,0.00023787,3]
[365741538,1749863446910,-317.0,0.00023787,3]
[365741539,1749863446920,-151.0,0.00023787,3]
[365741540,1749863446929,-1307.40974913,0.00023787,3]
[365741541,1749863446939,-151.0,0.00023787,3]
[365741542,1749863446948,-1745.0,0.00023787,3]
[365741543,1749863446957,-151.0,0.00023787,3]
[365741544,1749863446966,-243.6925415,0.00023787,3]
[365741545,1749863446975,-1745.0,0.00023787,3]
[365741546,1749863446985,-151.0,0.00023787,3]
[365741547,1749863446994,-1745.0,0.00023787,3]
[365741548,1749863447003,-151.0,0.00023787,3]
[365741549,1749863447012,-1745.0,0.00023787,3]
[365741550,1749863447021,-151.0,0.00023787,3]
[365741552,1749863447030,-1745.0,0.00023787,3]
[365741553,1749863447039,-1745.0,0.00023787,3]
[365741554,1749863447048,-151.0,0.00023787,3]
[365741556,1749863447057,-1745.0,0.00023787,3]
[365741557,1749863447066,-151.0,0.00023787,3]
[365741560,1749863447076,-1745.0,0.00023787,3]
[365741562,1749863447085,-151.0,0.00023787,3]
[365741564,1749863447096,-1745.0,0.00023787,3]
[365741566,1749863447112,-151.0,0.00023787,3]
[365741568,1749863447122,-1745.0,0.00023787,3]
[365741569,1749863447131,-1745.0,0.00023787,3]
[365741571,1749863447141,-1745.0,0.00023787,3]
[365741573,1749863447150,-317.0,0.00023787,3]
[365741576,1749863447160,-317.0,0.00023787,3]
[365741578,1749863447169,-317.0,0.00023787,3]
[365741580,1749863447179,-317.0,0.00023787,3]
[365741582,1749863447188,-317.0,0.00023787,3]
[365741584,1749863447197,-317.0,0.00023787,3]
[365741586,1749863447207,-317.0,0.00023787,3]
[365741588,1749863447216,-317.0,0.00023787,3]
[365741590,1749863447226,-317.0,0.00023787,3]
[365741592,1749863447235,-317.0,0.00023787,3]
[365741594,1749863447244,-360.69319732,0.00023787,3]
[365741596,1749863447253,-1745.0,0.00023787,3]
[365741598,1749863447262,-151.0,0.00023787,3]
[365741600,1749863447271,-1745.0,0.00023787,3]
[365741602,1749863447280,-151.0,0.00023787,3]
[365741604,1749863447289,-1745.0,0.00023787,3]
[365741606,1749863447298,-151.0,0.00023787,3]
[365741607,1749863447311,-166.0,0.00023787,3]
[365741610,1749863447320,-1745.0,0.00023787,3]
[365741612,1749863447329,-151.0,0.00023787,3]
[365741614,1749863447339,-166.0,0.00023787,3]
[365741616,1749863447350,-1745.0,0.00023787,3]
[365741617,1749863447360,-151.0,0.00023787,3]
[365741619,1749863447369,-172.0,0.00023787,3]
[365741621,1749863447380,-1745.0,0.00023787,3]
[365741623,1749863447390,-151.0,0.00023787,3]
[365741625,1749863447400,-1255.55281195,0.00023787,3]
[365741627,1749863447409,-151.0,0.00023787,3]
[365741629,1749863447418,-317.0,0.00023787,3]
[365741631,1749863447427,-317.0,0.00023787,3]
[365741634,1749863447436,-317.0,0.00023787,3]
[365741635,1749863447445,-317.0,0.00023787,3]
[365741638,1749863447455,-317.0,0.00023787,3]
[365741639,1749863447464,-317.0,0.00023787,3]
[365741641,1749863447474,-317.0,0.00023787,3]
[365741643,1749863447483,-317.0,0.00023787,3]
[365741646,1749863447492,-317.0,0.00023787,3]
[365741647,1749863447501,-317.0,0.00023787,3]
[365741649,1749863447510,-317.0,0.00023787,3]
[365741651,1749863447520,-317.0,0.00023787,3]
[365741653,1749863447529,-317.0,0.00023787,3]
[365741655,1749863447538,-317.0,0.00023787,3]
[365741657,1749863447547,-317.0,0.00023787,3]
[365741659,1749863447556,-317.0,0.00023787,3]
[365741661,1749863447565,-317.0,0.00023787,3]
[365741663,1749863447575,-317.0,0.00023787,3]
[365741665,1749863447584,-317.0,0.00023787,3]
[365741667,1749863447593,-317.0,0.00023787,3]
[365741677,1749863447674,-317.0,0.00023787,3]
[365741679,1749863447684,-317.0,0.00023787,3]
[365741681,1749863447693,-317.0,0.00023787,3]
[365741683,1749863447702,-317.0,0.00023787,3]
[365741685,1749863447712,-317.0,0.00023787,3]
[365741687,1749863447721,-317.0,0.00023787,3]
[365741689,1749863447730,-244.88134464,0.00023787,3]
[365741691,1749863447740,-151.0,0.00023787,7]
[365741694,1749863447749,-230.794975,0.00023787,7]
[365741695,1749863447759,-151.0,0.00023787,7]
[365741697,1749863447769,-151.0,0.00023787,7]
[365741700,1749863447779,-151.0,0.00023787,7]
[365741701,1749863447788,-151.0,0.00023787,7]
[365741704,1749863447798,-151.0,0.00023787,7]
[365741706,1749863447807,-151.0,0.00023787,7]
[365741708,1749863447817,-151.0,0.00023787,7]
[365741710,1749863447826,-151.0,0.00023787,7]
[365741711,1749863447835,-151.0,0.00023787,7]
[365741713,1749863447845,-151.0,0.00023787,7]
[365741715,1749863447854,-151.0,0.00023787,7]
[365741717,1749863447863,-151.0,0.00023787,7]
[365741719,1749863447873,-151.0,0.00023787,7]
[365741721,1749863447882,-151.0,0.00023787,7]